{"text_format":"3","workbook":"xlsx","n_sheets":17,"sheets":["部门财务收支预算总表01-1","部门收入预算表01-2","部门支出预算表01-3","部门财政拨款收支预算总表02-1","一般公共预算支出预算表02-2","一般公共预算“三公”经费支出预算表03","部门基本支出预算表04","部门项目支出预算表05-1","部门项目支出绩效目标表05-2","部门政府性基金预算支出预算表06","部门政府采购预算表07","部门政府购买服务预算表08","省对下转移支付预算表09-1","省对下转移支付绩效目标表09-2","新增资产配置表10","中央转移支付补助项目支出预算表11","部门项目中期规划预算表12"],"read":"whole","date_system":"1900"}

{"sheet":"部门财务收支预算总表01-1","index":0,"n_rows":21,"n_cols":4,"rows_kept":21,"merged":[[1,0,1,3],[2,0,2,1],[3,0,3,1],[3,2,3,3],[4,0,5,0],[4,1,5,1],[4,2,5,2],[4,3,5,3]]}
[{"$nulls":3},"预算01-1表"]
["2025年财务收支预算总表部门"]
[{"$f":"\"单位名称：\"&\"云南省石油化工锅炉压力容器检测中心站\"","v":"单位名称：云南省石油化工锅炉压力容器检测中心站"},null,null,"单位:元"]
["收        入",null,"支        出"]
["项      目","预算数","项目（按功能分类）","预算数"]
[]
["一、一般公共预算拨款收入",{"v":6380392.04,"d":"6,380,392.04"},{"$f":"\"一\"&\"、\"&\"一般公共服务支出\"","v":"一、一般公共服务支出"},{"v":1100000,"d":"1,100,000.00"}]
["二、政府性基金预算拨款收入",null,{"$f":"\"二\"&\"、\"&\"社会保障和就业支出\"","v":"二、社会保障和就业支出"},{"v":519925.25,"d":"519,925.25"}]
["三、国有资本经营预算拨款收入",null,{"$f":"\"三\"&\"、\"&\"卫生健康支出\"","v":"三、卫生健康支出"},{"v":579903.31,"d":"579,903.31"}]
["四、财政专户管理资金收入",null,{"$f":"\"四\"&\"、\"&\"资源勘探工业信息等支出\"","v":"四、资源勘探工业信息等支出"},{"v":3860230.45,"d":"3,860,230.45"}]
["五、单位资金",{"v":500,"d":"500.00"},{"$f":"\"五\"&\"、\"&\"住房保障支出\"","v":"五、住房保障支出"},{"v":320933.03,"d":"320,933.03"}]
["1、事业收入"]
["2、事业单位经营收入"]
["3、上级补助收入"]
["4、附属单位上缴收入"]
["5、其他收入",{"v":500,"d":"500.00"}]
["本年收入合计",{"v":6380892.04,"d":"6,380,892.04"},"本年支出合计",{"v":6380992.04,"d":"6,380,992.04"}]
["上年结转结余",238.32,"年终结转结余",138.32]
["1、财政拨款结转结余",null,"1、财政拨款结转结余"]
["2、使用非财政拨款结余",238.32,"2、非财政拨款结余",138.32]
["收  入  总  计",{"v":6381130.36,"d":"6,381,130.36"},"支 出 总 计",{"v":6381130.36,"d":"6,381,130.36"}]

{"sheet":"部门收入预算表01-2","index":1,"n_rows":9,"n_cols":19,"rows_kept":9,"merged":[[0,13,0,13],[0,17,0,18],[1,0,1,18],[2,0,2,3],[2,13,2,13],[2,17,2,18],[3,0,5,0],[3,1,5,1],[3,2,5,2],[3,3,3,13],[3,14,3,18],[4,3,5,3],[4,4,5,4],[4,5,5,5],[4,6,5,6],[4,7,5,7],[4,8,4,13],[4,14,5,14],[4,15,5,15],[4,16,5,16],[4,17,5,17],[4,18,5,18]]}
[{"$nulls":17},"预算01-2表"]
["2025年部门收入预算表"]
[{"$f":"\"单位名称：\"&\"云南省石油化工锅炉压力容器检测中心站\"","v":"单位名称：云南省石油化工锅炉压力容器检测中心站"},{"$nulls":16},"单位:元","单位:元"]
["部门（单位）代码","部门（单位）名称","合计","本年收入",{"$nulls":10},"上年结转结余"]
[{"$nulls":3},"小计","一般公共预算","政府性基金预算","国有资本经营预算","财政专户管理资金","单位资金收入",null,"事业单位经营收入","上级补助收入","附属单位上缴收入","其他收入","小计","一般公共预算","政府性基金预算","国有资本经营预算","使用非财政拨款结余"]
[{"$nulls":8},"小计","事业收入","事业单位经营收入","上级补助收入","附属单位上缴收入","其他收入"]
[1,2,3,4,5,6,7,8,9,10,11,12,13,14,15,16,17,18,19]
["441004","云南省石油化工锅炉压力容器检测中心站",{"v":6381130.36,"d":"6,381,130.36"},{"v":6380892.04,"d":"6,380,892.04"},{"v":6380392.04,"d":"6,380,392.04"},{"$nulls":3},{"v":500,"d":"500.00"},{"$nulls":4},{"v":500,"d":"500.00"},238.32,{"$nulls":3},238.32]
["合计",null,{"v":6381130.36,"d":"6,381,130.36"},{"v":6380892.04,"d":"6,380,892.04"},{"v":6380392.04,"d":"6,380,392.04"},{"$nulls":3},{"v":500,"d":"500.00"},{"$nulls":4},{"v":500,"d":"500.00"},238.32,{"$nulls":3},238.32]

{"sheet":"部门支出预算表01-3","index":2,"n_rows":27,"n_cols":15,"rows_kept":27,"merged":[[1,0,1,14],[2,0,2,11],[3,0,4,0],[3,1,4,1],[3,2,4,2],[3,3,3,5],[3,6,4,6],[3,7,4,7],[3,8,4,8],[3,9,3,14],[26,0,26,1]]}
[{"$nulls":14},"预算01-3表"]
["2025年部门支出预算表"]
[{"$f":"\"单位名称：\"&\"云南省石油化工锅炉压力容器检测中心站\"","v":"单位名称：云南省石油化工锅炉压力容器检测中心站"},{"$nulls":13},"单位:元"]
["科目编码","科目名称","合计","一般公共预算",null,null,"政府性基金预算","国有资本经营预算","财政专户管理的支出","单位资金","事业支出","事业单位\n经营支出","上级补助支出","附属单位补助支出","其他支出"]
[{"$nulls":3},"小计","基本支出","项目支出",{"$nulls":3},"小计","事业支出","事业单位\n经营支出","上级补助支出","附属单位补助支出","其他支出"]
[1,2,3,4,5,6,7,8,9,10,11,12,13,14,15]
["201","一般公共服务支出",{"v":1100000,"d":"1,100,000.00"},{"v":1100000,"d":"1,100,000.00"},{"v":75000,"d":"75,000.00"},{"v":1025000,"d":"1,025,000.00"}]
["20138","市场监督管理事务",{"v":1100000,"d":"1,100,000.00"},{"v":1100000,"d":"1,100,000.00"},{"v":75000,"d":"75,000.00"},{"v":1025000,"d":"1,025,000.00"}]
["2013810","质量基础",{"v":1100000,"d":"1,100,000.00"},{"v":1100000,"d":"1,100,000.00"},{"v":75000,"d":"75,000.00"},{"v":1025000,"d":"1,025,000.00"}]
["208","社会保障和就业支出",{"v":519925.25,"d":"519,925.25"},{"v":519925.25,"d":"519,925.25"},{"v":519925.25,"d":"519,925.25"}]
["20805","行政事业单位养老支出",{"v":496378.4,"d":"496,378.40"},{"v":496378.4,"d":"496,378.40"},{"v":496378.4,"d":"496,378.40"}]
["2080502","事业单位离退休",{"v":10800,"d":"10,800.00"},{"v":10800,"d":"10,800.00"},{"v":10800,"d":"10,800.00"}]
["2080505","机关事业单位基本养老保险缴费支出",{"v":485578.4,"d":"485,578.40"},{"v":485578.4,"d":"485,578.40"},{"v":485578.4,"d":"485,578.40"}]
["20899","其他社会保障和就业支出",{"v":23546.85,"d":"23,546.85"},{"v":23546.85,"d":"23,546.85"},{"v":23546.85,"d":"23,546.85"}]
["2089999","其他社会保障和就业支出",{"v":23546.85,"d":"23,546.85"},{"v":23546.85,"d":"23,546.85"},{"v":23546.85,"d":"23,546.85"}]
["210","卫生健康支出",{"v":579903.31,"d":"579,903.31"},{"v":579903.31,"d":"579,903.31"},{"v":579903.31,"d":"579,903.31"}]
["21011","行政事业单位医疗",{"v":579903.31,"d":"579,903.31"},{"v":579903.31,"d":"579,903.31"},{"v":579903.31,"d":"579,903.31"}]
["2101102","事业单位医疗",{"v":327765.42,"d":"327,765.42"},{"v":327765.42,"d":"327,765.42"},{"v":327765.42,"d":"327,765.42"}]
["2101103","公务员医疗补助",{"v":233417.89,"d":"233,417.89"},{"v":233417.89,"d":"233,417.89"},{"v":233417.89,"d":"233,417.89"}]
["2101199","其他行政事业单位医疗支出",{"v":18720,"d":"18,720.00"},{"v":18720,"d":"18,720.00"},{"v":18720,"d":"18,720.00"}]
["215","资源勘探工业信息等支出",{"v":3860230.45,"d":"3,860,230.45"},{"v":3859630.45,"d":"3,859,630.45"},{"v":3859630.45,"d":"3,859,630.45"},{"$nulls":4},{"v":600,"d":"600.00"},{"$nulls":4},{"v":600,"d":"600.00"}]
["21502","制造业",{"v":3860230.45,"d":"3,860,230.45"},{"v":3859630.45,"d":"3,859,630.45"},{"v":3859630.45,"d":"3,859,630.45"},{"$nulls":4},{"v":600,"d":"600.00"},{"$nulls":4},{"v":600,"d":"600.00"}]
["2150299","其他制造业支出",{"v":3860230.45,"d":"3,860,230.45"},{"v":3859630.45,"d":"3,859,630.45"},{"v":3859630.45,"d":"3,859,630.45"},{"$nulls":4},{"v":600,"d":"600.00"},{"$nulls":4},{"v":600,"d":"600.00"}]
["221","住房保障支出",{"v":320933.03,"d":"320,933.03"},{"v":320933.03,"d":"320,933.03"},{"v":320933.03,"d":"320,933.03"}]
["22102","住房改革支出",{"v":320933.03,"d":"320,933.03"},{"v":320933.03,"d":"320,933.03"},{"v":320933.03,"d":"320,933.03"}]
["2210201","住房公积金",{"v":320933.03,"d":"320,933.03"},{"v":320933.03,"d":"320,933.03"},{"v":320933.03,"d":"320,933.03"}]
["合  计","合  计",{"v":6380992.04,"d":"6,380,992.04"},{"v":6380392.04,"d":"6,380,392.04"},{"v":5355392.04,"d":"5,355,392.04"},{"v":1025000,"d":"1,025,000.00"},{"$nulls":3},{"v":600,"d":"600.00"},{"$nulls":4},{"v":600,"d":"600.00"}]

{"sheet":"部门财政拨款收支预算总表02-1","index":3,"n_rows":16,"n_cols":4,"rows_kept":16,"merged":[[1,0,1,3],[2,0,2,1],[3,0,3,1],[3,2,3,3],[4,0,5,0],[4,1,5,1],[4,2,5,2],[4,3,5,3]]}
[{"$nulls":3},"预算02-1表"]
["2025年部门财政拨款收支预算总表"]
[{"$f":"\"单位名称：\"&\"云南省石油化工锅炉压力容器检测中心站\"","v":"单位名称：云南省石油化工锅炉压力容器检测中心站"},null,null,"单位:元"]
["收        入",null,"支        出"]
["项      目","预算数","支出功能分类科目","预算数"]
[]
["一、本年收入",{"v":6380392.04,"d":"6,380,392.04"},"一、本年支出",{"v":6380392.04,"d":"6,380,392.04"}]
["（一）一般公共预算拨款",{"v":6380392.04,"d":"6,380,392.04"},{"$f":"\"（一）\"&\"一般公共服务支出\"","v":"（一）一般公共服务支出"},{"v":1100000,"d":"1,100,000.00"}]
["（二）政府性基金预算拨款",null,{"$f":"\"（二）\"&\"社会保障和就业支出\"","v":"（二）社会保障和就业支出"},{"v":519925.25,"d":"519,925.25"}]
["（三）国有资本经营预算拨款",null,{"$f":"\"（三）\"&\"卫生健康支出\"","v":"（三）卫生健康支出"},{"v":579903.31,"d":"579,903.31"}]
["二、上年结转",null,{"$f":"\"（四）\"&\"资源勘探工业信息等支出\"","v":"（四）资源勘探工业信息等支出"},{"v":3859630.45,"d":"3,859,630.45"}]
["（一）一般公共预算拨款",null,{"$f":"\"（五）\"&\"住房保障支出\"","v":"（五）住房保障支出"},{"v":320933.03,"d":"320,933.03"}]
["（二）政府性基金预算拨款"]
["（三）国有资本经营预算拨款"]
[null,null,"二、年终结转结余"]
["收 入 总 计",{"v":6380392.04,"d":"6,380,392.04"},"支 出 总 计",{"v":6380392.04,"d":"6,380,392.04"}]

{"sheet":"一般公共预算支出预算表02-2","index":4,"n_rows":27,"n_cols":7,"rows_kept":27,"merged":[[1,0,1,6],[2,0,2,4],[3,0,3,1],[3,2,4,2],[3,3,3,5],[3,6,4,6],[26,0,26,1]]}
[{"$nulls":6},"预算02-2表"]
["2025年一般公共预算支出预算表（按功能科目分类）"]
[{"$f":"\"单位名称：\"&\"云南省石油化工锅炉压力容器检测中心站\"","v":"单位名称：云南省石油化工锅炉压力容器检测中心站"},{"$nulls":5},"单位:元"]
["部门预算支出功能分类科目",null,"合计","基本支出",null,null,"项目支出"]
["科目编码","科目名称",null,"小计","人员经费","公用经费"]
["1","2","3",null,"4","5","6"]
["201","一般公共服务支出",{"v":1100000,"d":"1,100,000.00"},{"v":75000,"d":"75,000.00"},null,{"v":75000,"d":"75,000.00"},{"v":1025000,"d":"1,025,000.00"}]
["20138","市场监督管理事务",{"v":1100000,"d":"1,100,000.00"},{"v":75000,"d":"75,000.00"},null,{"v":75000,"d":"75,000.00"},{"v":1025000,"d":"1,025,000.00"}]
["2013810","质量基础",{"v":1100000,"d":"1,100,000.00"},{"v":75000,"d":"75,000.00"},null,{"v":75000,"d":"75,000.00"},{"v":1025000,"d":"1,025,000.00"}]
["208","社会保障和就业支出",{"v":519925.25,"d":"519,925.25"},{"v":519925.25,"d":"519,925.25"},{"v":509125.25,"d":"509,125.25"},{"v":10800,"d":"10,800.00"}]
["20805","行政事业单位养老支出",{"v":496378.4,"d":"496,378.40"},{"v":496378.4,"d":"496,378.40"},{"v":485578.4,"d":"485,578.40"},{"v":10800,"d":"10,800.00"}]
["2080502","事业单位离退休",{"v":10800,"d":"10,800.00"},{"v":10800,"d":"10,800.00"},null,{"v":10800,"d":"10,800.00"}]
["2080505","机关事业单位基本养老保险缴费支出",{"v":485578.4,"d":"485,578.40"},{"v":485578.4,"d":"485,578.40"},{"v":485578.4,"d":"485,578.40"}]
["20899","其他社会保障和就业支出",{"v":23546.85,"d":"23,546.85"},{"v":23546.85,"d":"23,546.85"},{"v":23546.85,"d":"23,546.85"}]
["2089999","其他社会保障和就业支出",{"v":23546.85,"d":"23,546.85"},{"v":23546.85,"d":"23,546.85"},{"v":23546.85,"d":"23,546.85"}]
["210","卫生健康支出",{"v":579903.31,"d":"579,903.31"},{"v":579903.31,"d":"579,903.31"},{"v":579903.31,"d":"579,903.31"}]
["21011","行政事业单位医疗",{"v":579903.31,"d":"579,903.31"},{"v":579903.31,"d":"579,903.31"},{"v":579903.31,"d":"579,903.31"}]
["2101102","事业单位医疗",{"v":327765.42,"d":"327,765.42"},{"v":327765.42,"d":"327,765.42"},{"v":327765.42,"d":"327,765.42"}]
["2101103","公务员医疗补助",{"v":233417.89,"d":"233,417.89"},{"v":233417.89,"d":"233,417.89"},{"v":233417.89,"d":"233,417.89"}]
["2101199","其他行政事业单位医疗支出",{"v":18720,"d":"18,720.00"},{"v":18720,"d":"18,720.00"},{"v":18720,"d":"18,720.00"}]
["215","资源勘探工业信息等支出",{"v":3859630.45,"d":"3,859,630.45"},{"v":3859630.45,"d":"3,859,630.45"},{"v":3538865,"d":"3,538,865.00"},{"v":320765.45,"d":"320,765.45"}]
["21502","制造业",{"v":3859630.45,"d":"3,859,630.45"},{"v":3859630.45,"d":"3,859,630.45"},{"v":3538865,"d":"3,538,865.00"},{"v":320765.45,"d":"320,765.45"}]
["2150299","其他制造业支出",{"v":3859630.45,"d":"3,859,630.45"},{"v":3859630.45,"d":"3,859,630.45"},{"v":3538865,"d":"3,538,865.00"},{"v":320765.45,"d":"320,765.45"}]
["221","住房保障支出",{"v":320933.03,"d":"320,933.03"},{"v":320933.03,"d":"320,933.03"},{"v":320933.03,"d":"320,933.03"}]
["22102","住房改革支出",{"v":320933.03,"d":"320,933.03"},{"v":320933.03,"d":"320,933.03"},{"v":320933.03,"d":"320,933.03"}]
["2210201","住房公积金",{"v":320933.03,"d":"320,933.03"},{"v":320933.03,"d":"320,933.03"},{"v":320933.03,"d":"320,933.03"}]
["合  计","合  计",{"v":6380392.04,"d":"6,380,392.04"},{"v":5355392.04,"d":"5,355,392.04"},{"v":4948826.59,"d":"4,948,826.59"},{"v":406565.45,"d":"406,565.45"},{"v":1025000,"d":"1,025,000.00"}]

{"sheet":"一般公共预算“三公”经费支出预算表03","index":5,"n_rows":7,"n_cols":6,"rows_kept":7,"merged":[[1,0,1,5],[2,0,2,3],[3,0,4,0],[3,1,4,1],[3,2,3,4],[3,5,4,5]]}
[{"$nulls":5},"预算03表"]
["2025年一般公共预算“三公”经费支出预算表"]
[{"$f":"\"单位名称：\"&\"云南省石油化工锅炉压力容器检测中心站\"","v":"单位名称：云南省石油化工锅炉压力容器检测中心站"},{"$nulls":4},"单位：元"]
["“三公”经费合计","因公出国（境）费","公务用车购置及运行费",null,null,"公务接待费"]
[null,null,"小计","公务用车购置费","公务用车运行费"]
[1,2,3,4,5,6]
[{"v":2800,"d":"2,800.00"},{"$nulls":4},{"v":2800,"d":"2,800.00"}]

{"sheet":"部门基本支出预算表04","index":6,"n_rows":33,"n_cols":23,"rows_kept":33,"merged":[[1,0,1,22],[2,0,2,6],[3,0,6,0],[3,1,6,1],[3,2,6,2],[3,3,6,3],[3,4,6,4],[3,5,6,5],[3,6,6,6],[3,7,3,22],[4,7,6,7],[4,8,4,12],[4,13,4,15],[4,16,6,16],[4,17,4,22],[5,8,6,8],[5,9,6,9],[5,10,6,10],[5,11,6,11],[5,12,6,12],[5,13,6,13],[5,14,6,14],[5,15,6,15],[5,17,6,17],[5,18,6,18],[5,19,6,19],[5,20,6,20],[5,21,6,21],[5,22,6,22],[32,0,32,6]]}
[{"$nulls":22},"预算04表"]
["2025年部门基本支出预算表"]
[{"$f":"\"单位名称：\"&\"云南省石油化工锅炉压力容器检测中心站\"","v":"单位名称：云南省石油化工锅炉压力容器检测中心站"},{"$nulls":21},"单位：元"]
["单位名称","项目代码","项目名称","功能科目编码","功能科目名称","经济科目编码","经济科目名称","资金来源"]
[{"$nulls":7},"合计","一般公共预算",{"$nulls":4},"财政拨款结转结余",null,null,"财政专户管理资金","单位资金"]
[{"$nulls":8},"全年数","已提前安排","抵扣上年垫付资金","本次下达","另文下达","一般公共预算","政府性基金预算","国有资本经营预算",null,"小计","事业收入","事业单位\n经营收入","上级补助收入","附属单位上缴收入","其他收入"]
[]
[1,2,3,4,5,6,7,8,9,10,11,12,13,14,15,16,17,18,19,20,21,22,23]
["云南省石油化工锅炉压力容器检测中心站",{"$nulls":6},{"v":5355392.04,"d":"5,355,392.04"},{"v":5355392.04,"d":"5,355,392.04"},{"v":1334138.02,"d":"1,334,138.02"},null,{"v":4021254.02,"d":"4,021,254.02"}]
["云南省石油化工锅炉压力容器检测中心站","530000210000000031749","事业人员支出工资","2150299","其他制造业支出","30101","基本工资",{"v":1273596,"d":"1,273,596.00"},{"v":1273596,"d":"1,273,596.00"},{"v":318399,"d":"318,399.00"},null,{"v":955197,"d":"955,197.00"}]
["云南省石油化工锅炉压力容器检测中心站","530000210000000031749","事业人员支出工资","2150299","其他制造业支出","30103","奖金",{"v":106133,"d":"106,133.00"},{"v":106133,"d":"106,133.00"},{"v":26533.25,"d":"26,533.25"},null,{"v":79599.75,"d":"79,599.75"}]
["云南省石油化工锅炉压力容器检测中心站","530000210000000031749","事业人员支出工资","2150299","其他制造业支出","30107","绩效工资",{"v":2159136,"d":"2,159,136.00"},{"v":2159136,"d":"2,159,136.00"},{"v":539784,"d":"539,784.00"},null,{"v":1619352,"d":"1,619,352.00"}]
["云南省石油化工锅炉压力容器检测中心站","530000210000000031750","社会保障缴费","2080505","机关事业单位基本养老保险缴费支出","30108","机关事业单位基本养老保险缴费",{"v":485578.4,"d":"485,578.40"},{"v":485578.4,"d":"485,578.40"},{"v":121394.6,"d":"121,394.60"},null,{"v":364183.8,"d":"364,183.80"}]
["云南省石油化工锅炉压力容器检测中心站","530000210000000031750","社会保障缴费","2089999","其他社会保障和就业支出","30112","其他社会保障缴费",{"v":23546.85,"d":"23,546.85"},{"v":23546.85,"d":"23,546.85"},{"v":5886.71,"d":"5,886.71"},null,{"v":17660.14,"d":"17,660.14"}]
["云南省石油化工锅炉压力容器检测中心站","530000210000000031750","社会保障缴费","2101102","事业单位医疗","30110","职工基本医疗保险缴费",{"v":327765.42,"d":"327,765.42"},{"v":327765.42,"d":"327,765.42"},{"v":81941.36,"d":"81,941.36"},null,{"v":245824.06,"d":"245,824.06"}]
["云南省石油化工锅炉压力容器检测中心站","530000210000000031750","社会保障缴费","2101103","公务员医疗补助","30111","公务员医疗补助缴费",{"v":233417.89,"d":"233,417.89"},{"v":233417.89,"d":"233,417.89"},{"v":58354.47,"d":"58,354.47"},null,{"v":175063.42,"d":"175,063.42"}]
["云南省石油化工锅炉压力容器检测中心站","530000210000000031750","社会保障缴费","2101199","其他行政事业单位医疗支出","30112","其他社会保障缴费",{"v":18720,"d":"18,720.00"},{"v":18720,"d":"18,720.00"},{"v":18720,"d":"18,720.00"}]
["云南省石油化工锅炉压力容器检测中心站","530000210000000031752","住房公积金","2210201","住房公积金","30113","住房公积金",{"v":320933.03,"d":"320,933.03"},{"v":320933.03,"d":"320,933.03"},{"v":80233.26,"d":"80,233.26"},null,{"v":240699.77,"d":"240,699.77"}]
["云南省石油化工锅炉压力容器检测中心站","530000210000000031758","公务接待费","2150299","其他制造业支出","30217","公务接待费",{"v":2800,"d":"2,800.00"},{"v":2800,"d":"2,800.00"},{"v":700,"d":"700.00"},null,{"v":2100,"d":"2,100.00"}]
["云南省石油化工锅炉压力容器检测中心站","530000210000000031760","工会经费","2150299","其他制造业支出","30228","工会经费",{"v":70777.3,"d":"70,777.30"},{"v":70777.3,"d":"70,777.30"},{"v":17694.33,"d":"17,694.33"},null,{"v":53082.97,"d":"53,082.97"}]
["云南省石油化工锅炉压力容器检测中心站","530000210000000031762","一般公用经费","2080502","事业单位离退休","30299","其他商品和服务支出",{"v":10800,"d":"10,800.00"},{"v":10800,"d":"10,800.00"},{"v":2700,"d":"2,700.00"},null,{"v":8100,"d":"8,100.00"}]
["云南省石油化工锅炉压力容器检测中心站","530000210000000031762","一般公用经费","2150299","其他制造业支出","30201","办公费",{"v":52000,"d":"52,000.00"},{"v":52000,"d":"52,000.00"},{"v":13000,"d":"13,000.00"},null,{"v":39000,"d":"39,000.00"}]
["云南省石油化工锅炉压力容器检测中心站","530000210000000031762","一般公用经费","2150299","其他制造业支出","30202","印刷费",{"v":5000,"d":"5,000.00"},{"v":5000,"d":"5,000.00"},{"v":1250,"d":"1,250.00"},null,{"v":3750,"d":"3,750.00"}]
["云南省石油化工锅炉压力容器检测中心站","530000210000000031762","一般公用经费","2150299","其他制造业支出","30205","水费",{"v":11000,"d":"11,000.00"},{"v":11000,"d":"11,000.00"},{"v":2750,"d":"2,750.00"},null,{"v":8250,"d":"8,250.00"}]
["云南省石油化工锅炉压力容器检测中心站","530000210000000031762","一般公用经费","2150299","其他制造业支出","30206","电费",{"v":32000,"d":"32,000.00"},{"v":32000,"d":"32,000.00"},{"v":8000,"d":"8,000.00"},null,{"v":24000,"d":"24,000.00"}]
["云南省石油化工锅炉压力容器检测中心站","530000210000000031762","一般公用经费","2150299","其他制造业支出","30207","邮电费",{"v":9200,"d":"9,200.00"},{"v":9200,"d":"9,200.00"},{"v":2300,"d":"2,300.00"},null,{"v":6900,"d":"6,900.00"}]
["云南省石油化工锅炉压力容器检测中心站","530000210000000031762","一般公用经费","2150299","其他制造业支出","30209","物业管理费",{"v":1107,"d":"1,107.00"},{"v":1107,"d":"1,107.00"},276.75,null,830.25]
["云南省石油化工锅炉压力容器检测中心站","530000210000000031762","一般公用经费","2150299","其他制造业支出","30211","差旅费",{"v":20000,"d":"20,000.00"},{"v":20000,"d":"20,000.00"},{"v":5000,"d":"5,000.00"},null,{"v":15000,"d":"15,000.00"}]
["云南省石油化工锅炉压力容器检测中心站","530000210000000031762","一般公用经费","2150299","其他制造业支出","30213","维修（护）费",{"v":25845,"d":"25,845.00"},{"v":25845,"d":"25,845.00"},{"v":6461.25,"d":"6,461.25"},null,{"v":19383.75,"d":"19,383.75"}]
["云南省石油化工锅炉压力容器检测中心站","530000210000000031762","一般公用经费","2150299","其他制造业支出","30229","福利费",{"v":70777.3,"d":"70,777.30"},{"v":70777.3,"d":"70,777.30"},{"v":17694.33,"d":"17,694.33"},null,{"v":53082.97,"d":"53,082.97"}]
["云南省石油化工锅炉压力容器检测中心站","530000210000000031762","一般公用经费","2150299","其他制造业支出","30299","其他商品和服务支出",{"v":20258.85,"d":"20,258.85"},{"v":20258.85,"d":"20,258.85"},{"v":5064.71,"d":"5,064.71"},null,{"v":15194.14,"d":"15,194.14"}]
["云南省石油化工锅炉压力容器检测中心站","530000231100001081201","特种设备检验收费成本其他交通费项目资金","2013810","质量基础","30239","其他交通费用",{"v":75000,"d":"75,000.00"},{"v":75000,"d":"75,000.00"},null,null,{"v":75000,"d":"75,000.00"}]
["合  计",{"$nulls":6},{"v":5355392.04,"d":"5,355,392.04"},{"v":5355392.04,"d":"5,355,392.04"},{"v":1334138.02,"d":"1,334,138.02"},null,{"v":4021254.02,"d":"4,021,254.02"}]

{"sheet":"部门项目支出预算表05-1","index":7,"n_rows":21,"n_cols":23,"rows_kept":21,"merged":[[1,0,1,22],[2,0,2,8],[3,0,5,0],[3,1,5,1],[3,2,5,2],[3,3,5,3],[3,4,5,4],[3,5,5,5],[3,6,5,6],[3,7,5,7],[3,8,5,8],[3,9,3,12],[3,13,3,15],[3,16,5,16],[3,17,3,22],[4,9,4,10],[4,11,5,11],[4,12,5,12],[4,13,5,13],[4,14,5,14],[4,15,5,15],[4,17,5,17],[4,18,5,18],[4,19,5,19],[4,20,5,20],[4,21,5,21],[4,22,5,22],[20,0,20,7]]}
[{"$nulls":22},"预算05-1表"]
["2025年部门项目支出预算表"]
[{"$f":"\"单位名称：\"&\"云南省石油化工锅炉压力容器检测中心站\"","v":"单位名称：云南省石油化工锅炉压力容器检测中心站"},"单位名称：云南省石油化工锅炉压力容器检测中心站",{"$nulls":20},"单位：元"]
["项目分类","项目代码","项目名称","项目单位","功能科目编码","功能科目名称","经济科目编码","经济科目名称","合计","本年拨款",{"$nulls":3},"财政拨款结转结余",null,null,"财政专户管理资金","单位资金"]
[{"$nulls":9},"一般公共预算",null,"政府性基金预算","国有资本经营预算","一般公共预算","政府性基金预算","国有资本经营预算",null,"小计","事业收入","事业单位\n经营收入","上级补助收入","附属单位上缴收入","其他收入"]
[{"$nulls":9},"小计","其中：本次下达"]
[1,2,3,4,5,6,7,8,9,10,11,12,13,14,15,16,17,18,19,20,21,22,23]
[null,null,"其他人员支出",{"$nulls":5},{"v":394000,"d":"394,000.00"},{"v":394000,"d":"394,000.00"},{"v":394000,"d":"394,000.00"}]
["民生类","530000231100001074307","其他人员支出","云南省石油化工锅炉压力容器检测中心站","2013810","质量基础","30199","其他工资福利支出",{"v":394000,"d":"394,000.00"},{"v":394000,"d":"394,000.00"},{"v":394000,"d":"394,000.00"}]
[null,null,"特种设备检验收费成本补偿支出补助资金",{"$nulls":5},{"v":631000,"d":"631,000.00"},{"v":631000,"d":"631,000.00"},{"v":631000,"d":"631,000.00"}]
["事业发展类","530000200000000009405","特种设备检验收费成本补偿支出补助资金","云南省石油化工锅炉压力容器检测中心站","2013810","质量基础","30211","差旅费",{"v":236470,"d":"236,470.00"},{"v":236470,"d":"236,470.00"},{"v":236470,"d":"236,470.00"}]
["事业发展类","530000200000000009405","特种设备检验收费成本补偿支出补助资金","云南省石油化工锅炉压力容器检测中心站","2013810","质量基础","30213","维修（护）费",{"v":20000,"d":"20,000.00"},{"v":20000,"d":"20,000.00"},{"v":20000,"d":"20,000.00"}]
["事业发展类","530000200000000009405","特种设备检验收费成本补偿支出补助资金","云南省石油化工锅炉压力容器检测中心站","2013810","质量基础","30216","培训费",{"v":38420,"d":"38,420.00"},{"v":38420,"d":"38,420.00"},{"v":38420,"d":"38,420.00"}]
["事业发展类","530000200000000009405","特种设备检验收费成本补偿支出补助资金","云南省石油化工锅炉压力容器检测中心站","2013810","质量基础","30218","专用材料费",{"v":20000,"d":"20,000.00"},{"v":20000,"d":"20,000.00"},{"v":20000,"d":"20,000.00"}]
["事业发展类","530000200000000009405","特种设备检验收费成本补偿支出补助资金","云南省石油化工锅炉压力容器检测中心站","2013810","质量基础","30226","劳务费",{"v":8500,"d":"8,500.00"},{"v":8500,"d":"8,500.00"},{"v":8500,"d":"8,500.00"}]
["事业发展类","530000200000000009405","特种设备检验收费成本补偿支出补助资金","云南省石油化工锅炉压力容器检测中心站","2013810","质量基础","30299","其他商品和服务支出",{"v":59110,"d":"59,110.00"},{"v":59110,"d":"59,110.00"},{"v":59110,"d":"59,110.00"}]
["事业发展类","530000200000000009405","特种设备检验收费成本补偿支出补助资金","云南省石油化工锅炉压力容器检测中心站","2013810","质量基础","31002","办公设备购置",{"v":25300,"d":"25,300.00"},{"v":25300,"d":"25,300.00"},{"v":25300,"d":"25,300.00"}]
["事业发展类","530000200000000009405","特种设备检验收费成本补偿支出补助资金","云南省石油化工锅炉压力容器检测中心站","2013810","质量基础","31003","专用设备购置",{"v":223200,"d":"223,200.00"},{"v":223200,"d":"223,200.00"},{"v":223200,"d":"223,200.00"}]
[null,null,"银行账户维护费及手续费支出项目",{"$nulls":5},{"v":600,"d":"600.00"},{"$nulls":8},{"v":600,"d":"600.00"},{"$nulls":4},{"v":600,"d":"600.00"}]
["其他公用支出","530000231100001111185","银行账户维护费及手续费支出项目","云南省石油化工锅炉压力容器检测中心站","2150299","其他制造业支出","30299","其他商品和服务支出",{"v":600,"d":"600.00"},{"$nulls":8},{"v":600,"d":"600.00"},{"$nulls":4},{"v":600,"d":"600.00"}]
["合  计",{"$nulls":7},{"v":1025600,"d":"1,025,600.00"},{"v":1025000,"d":"1,025,000.00"},{"v":1025000,"d":"1,025,000.00"},{"$nulls":6},{"v":600,"d":"600.00"},{"$nulls":4},{"v":600,"d":"600.00"}]

{"sheet":"部门项目支出绩效目标表05-2","index":8,"n_rows":43,"n_cols":10,"rows_kept":43,"merged":[[1,0,1,9],[2,0,2,7],[6,0,18,0],[6,1,18,1],[19,0,22,0],[19,1,22,1],[23,0,35,0],[23,1,35,1],[36,0,42,0],[36,1,42,1]]}
[{"$nulls":9},"预算05-2表"]
["2025年部门项目支出绩效目标表"]
[{"$f":"\"单位名称：\"&\"云南省石油化工锅炉压力容器检测中心站\"","v":"单位名称：云南省石油化工锅炉压力容器检测中心站"}]
["单位名称、项目名称","项目年度绩效目标","一级指标","二级指标","三级指标","指标性质","指标值","度量单位","指标属性","指标内容"]
[1,2,3,4,5,6,7,8,9,10]
["云南省石油化工锅炉压力容器检测中心站"]
["特种设备检验收费成本其他交通费项目资金","1.检测站按照《中华人民共和国特种设备安全法》、《特种设备安全监察条例》及相关技术监察规程等法律法规的要求，对报检设备进行检验，保证所检特种设备安全运行。2.认真执行质量管理手册规定的程序，按照《固定式压力容器安全技术监察规程》、《压力管道安全技术监察规程》的要求出具检验报告。检验报告质量合格率不低于99%。3.现场检验工作结束后三十个工作日内出具检验报告。4.在对企业报检设备检验过程中发现的不符合规定的安全隐患问题及时发出检验意见书，督促企业进行整改，避免所检特种设备发生安全事故，从源头上消除了特种设备可能存在的不安全因素，为企业安全生产提供相关保障。5.及时安排组织检验任务和完成检验项目，及时向受检单位出具收费通知书，及时办理决算的相关手续，收回检验费用,完成年初非税收入收款计划220万元。6.按照单位完成检测检验工作所需的收费成本支出情况申请其他交通费项目资金，并严格按照单位项目资金管理办法及项目预算明细表使用资金，本着厉行节约的原则，合理选择汽车租赁平台，制定一定的节支增效措施控制其他交通费成本开支，不超预算、超范围使用其他交通费项目资金。7.在检验检测服务过程中与客户进行充分沟通，定期或不定期对客户进行回访，了解客户对本站工作和服务质量的要求及意见，杜绝报告检验报告超时出具，使受检方满意度大于98%。","产出指标","数量指标","检验特种设备台数",">=","1885","台","定量指标","反映实际报检的特种设备台数。"]
["特种设备检验收费成本其他交通费项目资金","1.检测站按照《中华人民共和国特种设备安全法》、《特种设备安全监察条例》及相关技术监察规程等法律法规的要求，对报检设备进行检验，保证所检特种设备安全运行。2.认真执行质量管理手册规定的程序，按照《固定式压力容器安全技术监察规程》、《压力管道安全技术监察规程》的要求出具检验报告。检验报告质量合格率不低于99%。3.现场检验工作结束后三十个工作日内出具检验报告。4.在对企业报检设备检验过程中发现的不符合规定的安全隐患问题及时发出检验意见书，督促企业进行整改，避免所检特种设备发生安全事故，从源头上消除了特种设备可能存在的不安全因素，为企业安全生产提供相关保障。5.及时安排组织检验任务和完成检验项目，及时向受检单位出具收费通知书，及时办理决算的相关手续，收回检验费用,完成年初非税收入收款计划220万元。6.按照单位完成检测检验工作所需的收费成本支出情况申请其他交通费项目资金，并严格按照单位项目资金管理办法及项目预算明细表使用资金，本着厉行节约的原则，合理选择汽车租赁平台，制定一定的节支增效措施控制其他交通费成本开支，不超预算、超范围使用其他交通费项目资金。7.在检验检测服务过程中与客户进行充分沟通，定期或不定期对客户进行回访，了解客户对本站工作和服务质量的要求及意见，杜绝报告检验报告超时出具，使受检方满意度大于98%。","产出指标","数量指标","上岗培训率","=","100","%","定量指标","反映按照《特种设备检验检测机构核准规则》中规定的检验人员资格及数量的要求，制定计划和开展培训比率。"]
["特种设备检验收费成本其他交通费项目资金","1.检测站按照《中华人民共和国特种设备安全法》、《特种设备安全监察条例》及相关技术监察规程等法律法规的要求，对报检设备进行检验，保证所检特种设备安全运行。2.认真执行质量管理手册规定的程序，按照《固定式压力容器安全技术监察规程》、《压力管道安全技术监察规程》的要求出具检验报告。检验报告质量合格率不低于99%。3.现场检验工作结束后三十个工作日内出具检验报告。4.在对企业报检设备检验过程中发现的不符合规定的安全隐患问题及时发出检验意见书，督促企业进行整改，避免所检特种设备发生安全事故，从源头上消除了特种设备可能存在的不安全因素，为企业安全生产提供相关保障。5.及时安排组织检验任务和完成检验项目，及时向受检单位出具收费通知书，及时办理决算的相关手续，收回检验费用,完成年初非税收入收款计划220万元。6.按照单位完成检测检验工作所需的收费成本支出情况申请其他交通费项目资金，并严格按照单位项目资金管理办法及项目预算明细表使用资金，本着厉行节约的原则，合理选择汽车租赁平台，制定一定的节支增效措施控制其他交通费成本开支，不超预算、超范围使用其他交通费项目资金。7.在检验检测服务过程中与客户进行充分沟通，定期或不定期对客户进行回访，了解客户对本站工作和服务质量的要求及意见，杜绝报告检验报告超时出具，使受检方满意度大于98%。","产出指标","数量指标","检验设备类型","=","4","种","定量指标","反映本单位根据《特种设备检验检测机构核准证》规定的检验核准项目数。"]
["特种设备检验收费成本其他交通费项目资金","1.检测站按照《中华人民共和国特种设备安全法》、《特种设备安全监察条例》及相关技术监察规程等法律法规的要求，对报检设备进行检验，保证所检特种设备安全运行。2.认真执行质量管理手册规定的程序，按照《固定式压力容器安全技术监察规程》、《压力管道安全技术监察规程》的要求出具检验报告。检验报告质量合格率不低于99%。3.现场检验工作结束后三十个工作日内出具检验报告。4.在对企业报检设备检验过程中发现的不符合规定的安全隐患问题及时发出检验意见书，督促企业进行整改，避免所检特种设备发生安全事故，从源头上消除了特种设备可能存在的不安全因素，为企业安全生产提供相关保障。5.及时安排组织检验任务和完成检验项目，及时向受检单位出具收费通知书，及时办理决算的相关手续，收回检验费用,完成年初非税收入收款计划220万元。6.按照单位完成检测检验工作所需的收费成本支出情况申请其他交通费项目资金，并严格按照单位项目资金管理办法及项目预算明细表使用资金，本着厉行节约的原则，合理选择汽车租赁平台，制定一定的节支增效措施控制其他交通费成本开支，不超预算、超范围使用其他交通费项目资金。7.在检验检测服务过程中与客户进行充分沟通，定期或不定期对客户进行回访，了解客户对本站工作和服务质量的要求及意见，杜绝报告检验报告超时出具，使受检方满意度大于98%。","产出指标","质量指标","全年不符合质量管理要求的检验报告和记录比率","<=","1.00","%","定量指标","反映检验工作质量。全年不符合质量管理要求的检验报告和记录比率=不符合质量管理要求的检验报告和记录数量/检验报告总数量*100%"]
["特种设备检验收费成本其他交通费项目资金","1.检测站按照《中华人民共和国特种设备安全法》、《特种设备安全监察条例》及相关技术监察规程等法律法规的要求，对报检设备进行检验，保证所检特种设备安全运行。2.认真执行质量管理手册规定的程序，按照《固定式压力容器安全技术监察规程》、《压力管道安全技术监察规程》的要求出具检验报告。检验报告质量合格率不低于99%。3.现场检验工作结束后三十个工作日内出具检验报告。4.在对企业报检设备检验过程中发现的不符合规定的安全隐患问题及时发出检验意见书，督促企业进行整改，避免所检特种设备发生安全事故，从源头上消除了特种设备可能存在的不安全因素，为企业安全生产提供相关保障。5.及时安排组织检验任务和完成检验项目，及时向受检单位出具收费通知书，及时办理决算的相关手续，收回检验费用,完成年初非税收入收款计划220万元。6.按照单位完成检测检验工作所需的收费成本支出情况申请其他交通费项目资金，并严格按照单位项目资金管理办法及项目预算明细表使用资金，本着厉行节约的原则，合理选择汽车租赁平台，制定一定的节支增效措施控制其他交通费成本开支，不超预算、超范围使用其他交通费项目资金。7.在检验检测服务过程中与客户进行充分沟通，定期或不定期对客户进行回访，了解客户对本站工作和服务质量的要求及意见，杜绝报告检验报告超时出具，使受检方满意度大于98%。","产出指标","质量指标","报检设备检验完成率","=","100","%","定量指标","反映检验工作完成情况。报检设备检验完成率=检验完成的报检设备台数/报检设备总台数*100%"]
["特种设备检验收费成本其他交通费项目资金","1.检测站按照《中华人民共和国特种设备安全法》、《特种设备安全监察条例》及相关技术监察规程等法律法规的要求，对报检设备进行检验，保证所检特种设备安全运行。2.认真执行质量管理手册规定的程序，按照《固定式压力容器安全技术监察规程》、《压力管道安全技术监察规程》的要求出具检验报告。检验报告质量合格率不低于99%。3.现场检验工作结束后三十个工作日内出具检验报告。4.在对企业报检设备检验过程中发现的不符合规定的安全隐患问题及时发出检验意见书，督促企业进行整改，避免所检特种设备发生安全事故，从源头上消除了特种设备可能存在的不安全因素，为企业安全生产提供相关保障。5.及时安排组织检验任务和完成检验项目，及时向受检单位出具收费通知书，及时办理决算的相关手续，收回检验费用,完成年初非税收入收款计划220万元。6.按照单位完成检测检验工作所需的收费成本支出情况申请其他交通费项目资金，并严格按照单位项目资金管理办法及项目预算明细表使用资金，本着厉行节约的原则，合理选择汽车租赁平台，制定一定的节支增效措施控制其他交通费成本开支，不超预算、超范围使用其他交通费项目资金。7.在检验检测服务过程中与客户进行充分沟通，定期或不定期对客户进行回访，了解客户对本站工作和服务质量的要求及意见，杜绝报告检验报告超时出具，使受检方满意度大于98%。","产出指标","质量指标","检验报告出具率","=","100","%","定量指标","反映检验出具报告情况。检验报告出具率=出具检验报告数/实际检验的特种设备台数*100%"]
["特种设备检验收费成本其他交通费项目资金","1.检测站按照《中华人民共和国特种设备安全法》、《特种设备安全监察条例》及相关技术监察规程等法律法规的要求，对报检设备进行检验，保证所检特种设备安全运行。2.认真执行质量管理手册规定的程序，按照《固定式压力容器安全技术监察规程》、《压力管道安全技术监察规程》的要求出具检验报告。检验报告质量合格率不低于99%。3.现场检验工作结束后三十个工作日内出具检验报告。4.在对企业报检设备检验过程中发现的不符合规定的安全隐患问题及时发出检验意见书，督促企业进行整改，避免所检特种设备发生安全事故，从源头上消除了特种设备可能存在的不安全因素，为企业安全生产提供相关保障。5.及时安排组织检验任务和完成检验项目，及时向受检单位出具收费通知书，及时办理决算的相关手续，收回检验费用,完成年初非税收入收款计划220万元。6.按照单位完成检测检验工作所需的收费成本支出情况申请其他交通费项目资金，并严格按照单位项目资金管理办法及项目预算明细表使用资金，本着厉行节约的原则，合理选择汽车租赁平台，制定一定的节支增效措施控制其他交通费成本开支，不超预算、超范围使用其他交通费项目资金。7.在检验检测服务过程中与客户进行充分沟通，定期或不定期对客户进行回访，了解客户对本站工作和服务质量的要求及意见，杜绝报告检验报告超时出具，使受检方满意度大于98%。","产出指标","时效指标","检验报告出具时限","<=","30个工作日","工作日","定量指标","反映检验报告出具时限，检验工作结束后30个工作日内出具报告，交付使用单位存入压力容器技术档案。"]
["特种设备检验收费成本其他交通费项目资金","1.检测站按照《中华人民共和国特种设备安全法》、《特种设备安全监察条例》及相关技术监察规程等法律法规的要求，对报检设备进行检验，保证所检特种设备安全运行。2.认真执行质量管理手册规定的程序，按照《固定式压力容器安全技术监察规程》、《压力管道安全技术监察规程》的要求出具检验报告。检验报告质量合格率不低于99%。3.现场检验工作结束后三十个工作日内出具检验报告。4.在对企业报检设备检验过程中发现的不符合规定的安全隐患问题及时发出检验意见书，督促企业进行整改，避免所检特种设备发生安全事故，从源头上消除了特种设备可能存在的不安全因素，为企业安全生产提供相关保障。5.及时安排组织检验任务和完成检验项目，及时向受检单位出具收费通知书，及时办理决算的相关手续，收回检验费用,完成年初非税收入收款计划220万元。6.按照单位完成检测检验工作所需的收费成本支出情况申请其他交通费项目资金，并严格按照单位项目资金管理办法及项目预算明细表使用资金，本着厉行节约的原则，合理选择汽车租赁平台，制定一定的节支增效措施控制其他交通费成本开支，不超预算、超范围使用其他交通费项目资金。7.在检验检测服务过程中与客户进行充分沟通，定期或不定期对客户进行回访，了解客户对本站工作和服务质量的要求及意见，杜绝报告检验报告超时出具，使受检方满意度大于98%。","产出指标","时效指标","检验工作进度","=","100","%","定量指标","反映检验工作完成进度，每年上半年完成20%，下半年完成80%。"]
["特种设备检验收费成本其他交通费项目资金","1.检测站按照《中华人民共和国特种设备安全法》、《特种设备安全监察条例》及相关技术监察规程等法律法规的要求，对报检设备进行检验，保证所检特种设备安全运行。2.认真执行质量管理手册规定的程序，按照《固定式压力容器安全技术监察规程》、《压力管道安全技术监察规程》的要求出具检验报告。检验报告质量合格率不低于99%。3.现场检验工作结束后三十个工作日内出具检验报告。4.在对企业报检设备检验过程中发现的不符合规定的安全隐患问题及时发出检验意见书，督促企业进行整改，避免所检特种设备发生安全事故，从源头上消除了特种设备可能存在的不安全因素，为企业安全生产提供相关保障。5.及时安排组织检验任务和完成检验项目，及时向受检单位出具收费通知书，及时办理决算的相关手续，收回检验费用,完成年初非税收入收款计划220万元。6.按照单位完成检测检验工作所需的收费成本支出情况申请其他交通费项目资金，并严格按照单位项目资金管理办法及项目预算明细表使用资金，本着厉行节约的原则，合理选择汽车租赁平台，制定一定的节支增效措施控制其他交通费成本开支，不超预算、超范围使用其他交通费项目资金。7.在检验检测服务过程中与客户进行充分沟通，定期或不定期对客户进行回访，了解客户对本站工作和服务质量的要求及意见，杜绝报告检验报告超时出具，使受检方满意度大于98%。","效益指标","经济效益","年初非税收入计划完成率","=","100","%","定量指标","反映年度实际完成非税收入情况。年初非税收入计划完成率=年度实际完成非税收入数/年初非税收入计划数*100%"]
["特种设备检验收费成本其他交通费项目资金","1.检测站按照《中华人民共和国特种设备安全法》、《特种设备安全监察条例》及相关技术监察规程等法律法规的要求，对报检设备进行检验，保证所检特种设备安全运行。2.认真执行质量管理手册规定的程序，按照《固定式压力容器安全技术监察规程》、《压力管道安全技术监察规程》的要求出具检验报告。检验报告质量合格率不低于99%。3.现场检验工作结束后三十个工作日内出具检验报告。4.在对企业报检设备检验过程中发现的不符合规定的安全隐患问题及时发出检验意见书，督促企业进行整改，避免所检特种设备发生安全事故，从源头上消除了特种设备可能存在的不安全因素，为企业安全生产提供相关保障。5.及时安排组织检验任务和完成检验项目，及时向受检单位出具收费通知书，及时办理决算的相关手续，收回检验费用,完成年初非税收入收款计划220万元。6.按照单位完成检测检验工作所需的收费成本支出情况申请其他交通费项目资金，并严格按照单位项目资金管理办法及项目预算明细表使用资金，本着厉行节约的原则，合理选择汽车租赁平台，制定一定的节支增效措施控制其他交通费成本开支，不超预算、超范围使用其他交通费项目资金。7.在检验检测服务过程中与客户进行充分沟通，定期或不定期对客户进行回访，了解客户对本站工作和服务质量的要求及意见，杜绝报告检验报告超时出具，使受检方满意度大于98%。","效益指标","经济效益","避免特种设备安全事故导致经济损失确保率","=","100","%","定性指标","反映特种设备检验从源头上消除了特种设备可能存在的不安全因素，100%避免企业因安全事故带来经济损失。"]
["特种设备检验收费成本其他交通费项目资金","1.检测站按照《中华人民共和国特种设备安全法》、《特种设备安全监察条例》及相关技术监察规程等法律法规的要求，对报检设备进行检验，保证所检特种设备安全运行。2.认真执行质量管理手册规定的程序，按照《固定式压力容器安全技术监察规程》、《压力管道安全技术监察规程》的要求出具检验报告。检验报告质量合格率不低于99%。3.现场检验工作结束后三十个工作日内出具检验报告。4.在对企业报检设备检验过程中发现的不符合规定的安全隐患问题及时发出检验意见书，督促企业进行整改，避免所检特种设备发生安全事故，从源头上消除了特种设备可能存在的不安全因素，为企业安全生产提供相关保障。5.及时安排组织检验任务和完成检验项目，及时向受检单位出具收费通知书，及时办理决算的相关手续，收回检验费用,完成年初非税收入收款计划220万元。6.按照单位完成检测检验工作所需的收费成本支出情况申请其他交通费项目资金，并严格按照单位项目资金管理办法及项目预算明细表使用资金，本着厉行节约的原则，合理选择汽车租赁平台，制定一定的节支增效措施控制其他交通费成本开支，不超预算、超范围使用其他交通费项目资金。7.在检验检测服务过程中与客户进行充分沟通，定期或不定期对客户进行回访，了解客户对本站工作和服务质量的要求及意见，杜绝报告检验报告超时出具，使受检方满意度大于98%。","效益指标","社会效益","特种设备安全运行事故发生次数","=","0","次","定量指标","反映特种设备安全运行事故发生的次数。"]
["特种设备检验收费成本其他交通费项目资金","1.检测站按照《中华人民共和国特种设备安全法》、《特种设备安全监察条例》及相关技术监察规程等法律法规的要求，对报检设备进行检验，保证所检特种设备安全运行。2.认真执行质量管理手册规定的程序，按照《固定式压力容器安全技术监察规程》、《压力管道安全技术监察规程》的要求出具检验报告。检验报告质量合格率不低于99%。3.现场检验工作结束后三十个工作日内出具检验报告。4.在对企业报检设备检验过程中发现的不符合规定的安全隐患问题及时发出检验意见书，督促企业进行整改，避免所检特种设备发生安全事故，从源头上消除了特种设备可能存在的不安全因素，为企业安全生产提供相关保障。5.及时安排组织检验任务和完成检验项目，及时向受检单位出具收费通知书，及时办理决算的相关手续，收回检验费用,完成年初非税收入收款计划220万元。6.按照单位完成检测检验工作所需的收费成本支出情况申请其他交通费项目资金，并严格按照单位项目资金管理办法及项目预算明细表使用资金，本着厉行节约的原则，合理选择汽车租赁平台，制定一定的节支增效措施控制其他交通费成本开支，不超预算、超范围使用其他交通费项目资金。7.在检验检测服务过程中与客户进行充分沟通，定期或不定期对客户进行回访，了解客户对本站工作和服务质量的要求及意见，杜绝报告检验报告超时出具，使受检方满意度大于98%。","效益指标","生态效益","特种设备介质泄漏、破坏生态环境次数","=","0","次","定量指标","反映检验工作促进特种设备安全运行情况，确保特种设备安全运行、介质不泄漏、不破坏生态环境。"]
["特种设备检验收费成本其他交通费项目资金","1.检测站按照《中华人民共和国特种设备安全法》、《特种设备安全监察条例》及相关技术监察规程等法律法规的要求，对报检设备进行检验，保证所检特种设备安全运行。2.认真执行质量管理手册规定的程序，按照《固定式压力容器安全技术监察规程》、《压力管道安全技术监察规程》的要求出具检验报告。检验报告质量合格率不低于99%。3.现场检验工作结束后三十个工作日内出具检验报告。4.在对企业报检设备检验过程中发现的不符合规定的安全隐患问题及时发出检验意见书，督促企业进行整改，避免所检特种设备发生安全事故，从源头上消除了特种设备可能存在的不安全因素，为企业安全生产提供相关保障。5.及时安排组织检验任务和完成检验项目，及时向受检单位出具收费通知书，及时办理决算的相关手续，收回检验费用,完成年初非税收入收款计划220万元。6.按照单位完成检测检验工作所需的收费成本支出情况申请其他交通费项目资金，并严格按照单位项目资金管理办法及项目预算明细表使用资金，本着厉行节约的原则，合理选择汽车租赁平台，制定一定的节支增效措施控制其他交通费成本开支，不超预算、超范围使用其他交通费项目资金。7.在检验检测服务过程中与客户进行充分沟通，定期或不定期对客户进行回访，了解客户对本站工作和服务质量的要求及意见，杜绝报告检验报告超时出具，使受检方满意度大于98%。","满意度指标","服务对象满意度","受检方满意度",">=","98","%","定量指标","反映检测单位对检测服务与质量的满意度。"]
["银行账户维护费及手续费支出项目","做好本部门人员、公用经费保障，按规定落实干部职工各项待遇，支持部门正常履职。","产出指标","数量指标","公用经费保障人数","=","28","人","定量指标","反映公用经费保障部门（单位）正常运转的在职人数情况。在职人数主要指办公、会议、培训、差旅、水费、电费等公用经费中服务保障的人数"]
["银行账户维护费及手续费支出项目","做好本部门人员、公用经费保障，按规定落实干部职工各项待遇，支持部门正常履职。","效益指标","社会效益","部门运转","=","正常运转",null,"定性指标","反映部门（单位）运转情况。"]
["银行账户维护费及手续费支出项目","做好本部门人员、公用经费保障，按规定落实干部职工各项待遇，支持部门正常履职。","满意度指标","服务对象满意度","单位人员满意度",">=","90","%","定量指标","反映部门（单位）人员对体检服务的满意程度。"]
["银行账户维护费及手续费支出项目","做好本部门人员、公用经费保障，按规定落实干部职工各项待遇，支持部门正常履职。","满意度指标","服务对象满意度","社会公众满意度",">=","90","%","定量指标","反映社会公众对部门（单位）履职情况的满意程度。"]
["特种设备检验收费成本补偿支出补助资金","1.检测站按照《中华人民共和国特种设备安全法》、《特种设备安全监察条例》及相关技术监察规程等法律法规的要求，对报检设备进行检验，保证所检特种设备安全运行。2.认真执行质量管理手册规定的程序，按照《固定式压力容器安全技术监察规程》、《压力管道安全技术监察规程》的要求出具检验报告。检验报告质量合格率不低于99%。3.现场检验工作结束后三十个工作日内出具检验报告。4.在对企业报检设备检验过程中发现的不符合规定的安全隐患问题及时发出检验意见书，督促企业进行整改，避免所检特种设备发生安全事故，从源头上消除了特种设备可能存在的不安全因素，为企业安全生产提供相关保障。5.及时安排组织检验任务和完成检验项目，及时向受检单位出具收费通知书，及时办理决算的相关手续，收回检验费用,完成年初非税收入收款计划220万元。6.按照单位完成检测检验工作所需的收费成本支出情况申请项目资金，并严格按照单位项目资金管理办法及项目预算明细表使用资金，本着厉行节约的原则，制定一定的节支增效措施控制检验成本开支，不超预算、超范围使用项目资金。7.按照《特种设备检验检测机构核准规则》中规定的检验人员资格及数量的要求，制定培训计划培训比率。8.在检验检测服务过程中与客户进行充分沟通，定期或不定期对客户进行回访，了解客户对本站工作和服务质量的要求及意见，杜绝报告检验报告超时出具，使受检方满意度大于98%。","产出指标","数量指标","检验特种设备台数",">=","1885","台","定量指标","反映实际报检的特种设备台数。"]
["特种设备检验收费成本补偿支出补助资金","1.检测站按照《中华人民共和国特种设备安全法》、《特种设备安全监察条例》及相关技术监察规程等法律法规的要求，对报检设备进行检验，保证所检特种设备安全运行。2.认真执行质量管理手册规定的程序，按照《固定式压力容器安全技术监察规程》、《压力管道安全技术监察规程》的要求出具检验报告。检验报告质量合格率不低于99%。3.现场检验工作结束后三十个工作日内出具检验报告。4.在对企业报检设备检验过程中发现的不符合规定的安全隐患问题及时发出检验意见书，督促企业进行整改，避免所检特种设备发生安全事故，从源头上消除了特种设备可能存在的不安全因素，为企业安全生产提供相关保障。5.及时安排组织检验任务和完成检验项目，及时向受检单位出具收费通知书，及时办理决算的相关手续，收回检验费用,完成年初非税收入收款计划220万元。6.按照单位完成检测检验工作所需的收费成本支出情况申请项目资金，并严格按照单位项目资金管理办法及项目预算明细表使用资金，本着厉行节约的原则，制定一定的节支增效措施控制检验成本开支，不超预算、超范围使用项目资金。7.按照《特种设备检验检测机构核准规则》中规定的检验人员资格及数量的要求，制定培训计划培训比率。8.在检验检测服务过程中与客户进行充分沟通，定期或不定期对客户进行回访，了解客户对本站工作和服务质量的要求及意见，杜绝报告检验报告超时出具，使受检方满意度大于98%。","产出指标","数量指标","上岗培训率","=","100","%","定量指标","反映按照《特种设备检验检测机构核准规则》中规定的检验人员资格及数量的要求，制定计划和开展培训比率。"]
["特种设备检验收费成本补偿支出补助资金","1.检测站按照《中华人民共和国特种设备安全法》、《特种设备安全监察条例》及相关技术监察规程等法律法规的要求，对报检设备进行检验，保证所检特种设备安全运行。2.认真执行质量管理手册规定的程序，按照《固定式压力容器安全技术监察规程》、《压力管道安全技术监察规程》的要求出具检验报告。检验报告质量合格率不低于99%。3.现场检验工作结束后三十个工作日内出具检验报告。4.在对企业报检设备检验过程中发现的不符合规定的安全隐患问题及时发出检验意见书，督促企业进行整改，避免所检特种设备发生安全事故，从源头上消除了特种设备可能存在的不安全因素，为企业安全生产提供相关保障。5.及时安排组织检验任务和完成检验项目，及时向受检单位出具收费通知书，及时办理决算的相关手续，收回检验费用,完成年初非税收入收款计划220万元。6.按照单位完成检测检验工作所需的收费成本支出情况申请项目资金，并严格按照单位项目资金管理办法及项目预算明细表使用资金，本着厉行节约的原则，制定一定的节支增效措施控制检验成本开支，不超预算、超范围使用项目资金。7.按照《特种设备检验检测机构核准规则》中规定的检验人员资格及数量的要求，制定培训计划培训比率。8.在检验检测服务过程中与客户进行充分沟通，定期或不定期对客户进行回访，了解客户对本站工作和服务质量的要求及意见，杜绝报告检验报告超时出具，使受检方满意度大于98%。","产出指标","数量指标","检验设备类型","=","4","种","定量指标","反映本单位根据《特种设备检验检测机构核准证》规定的检验核准项目数。"]
["特种设备检验收费成本补偿支出补助资金","1.检测站按照《中华人民共和国特种设备安全法》、《特种设备安全监察条例》及相关技术监察规程等法律法规的要求，对报检设备进行检验，保证所检特种设备安全运行。2.认真执行质量管理手册规定的程序，按照《固定式压力容器安全技术监察规程》、《压力管道安全技术监察规程》的要求出具检验报告。检验报告质量合格率不低于99%。3.现场检验工作结束后三十个工作日内出具检验报告。4.在对企业报检设备检验过程中发现的不符合规定的安全隐患问题及时发出检验意见书，督促企业进行整改，避免所检特种设备发生安全事故，从源头上消除了特种设备可能存在的不安全因素，为企业安全生产提供相关保障。5.及时安排组织检验任务和完成检验项目，及时向受检单位出具收费通知书，及时办理决算的相关手续，收回检验费用,完成年初非税收入收款计划220万元。6.按照单位完成检测检验工作所需的收费成本支出情况申请项目资金，并严格按照单位项目资金管理办法及项目预算明细表使用资金，本着厉行节约的原则，制定一定的节支增效措施控制检验成本开支，不超预算、超范围使用项目资金。7.按照《特种设备检验检测机构核准规则》中规定的检验人员资格及数量的要求，制定培训计划培训比率。8.在检验检测服务过程中与客户进行充分沟通，定期或不定期对客户进行回访，了解客户对本站工作和服务质量的要求及意见，杜绝报告检验报告超时出具，使受检方满意度大于98%。","产出指标","质量指标","全年不符合质量管理要求的检验报告和记录比率","<=","1.00","%","定量指标","反映检验工作质量。全年不符合质量管理要求的检验报告和记录比率=不符合质量管理要求的检验报告和记录数量/检验报告总数量*100%"]
["特种设备检验收费成本补偿支出补助资金","1.检测站按照《中华人民共和国特种设备安全法》、《特种设备安全监察条例》及相关技术监察规程等法律法规的要求，对报检设备进行检验，保证所检特种设备安全运行。2.认真执行质量管理手册规定的程序，按照《固定式压力容器安全技术监察规程》、《压力管道安全技术监察规程》的要求出具检验报告。检验报告质量合格率不低于99%。3.现场检验工作结束后三十个工作日内出具检验报告。4.在对企业报检设备检验过程中发现的不符合规定的安全隐患问题及时发出检验意见书，督促企业进行整改，避免所检特种设备发生安全事故，从源头上消除了特种设备可能存在的不安全因素，为企业安全生产提供相关保障。5.及时安排组织检验任务和完成检验项目，及时向受检单位出具收费通知书，及时办理决算的相关手续，收回检验费用,完成年初非税收入收款计划220万元。6.按照单位完成检测检验工作所需的收费成本支出情况申请项目资金，并严格按照单位项目资金管理办法及项目预算明细表使用资金，本着厉行节约的原则，制定一定的节支增效措施控制检验成本开支，不超预算、超范围使用项目资金。7.按照《特种设备检验检测机构核准规则》中规定的检验人员资格及数量的要求，制定培训计划培训比率。8.在检验检测服务过程中与客户进行充分沟通，定期或不定期对客户进行回访，了解客户对本站工作和服务质量的要求及意见，杜绝报告检验报告超时出具，使受检方满意度大于98%。","产出指标","质量指标","报检设备检验完成率","=","100","%","定量指标","反映检验工作完成情况。报检设备检验完成率=检验完成的报检设备台数/报检设备总台数*100%"]
["特种设备检验收费成本补偿支出补助资金","1.检测站按照《中华人民共和国特种设备安全法》、《特种设备安全监察条例》及相关技术监察规程等法律法规的要求，对报检设备进行检验，保证所检特种设备安全运行。2.认真执行质量管理手册规定的程序，按照《固定式压力容器安全技术监察规程》、《压力管道安全技术监察规程》的要求出具检验报告。检验报告质量合格率不低于99%。3.现场检验工作结束后三十个工作日内出具检验报告。4.在对企业报检设备检验过程中发现的不符合规定的安全隐患问题及时发出检验意见书，督促企业进行整改，避免所检特种设备发生安全事故，从源头上消除了特种设备可能存在的不安全因素，为企业安全生产提供相关保障。5.及时安排组织检验任务和完成检验项目，及时向受检单位出具收费通知书，及时办理决算的相关手续，收回检验费用,完成年初非税收入收款计划220万元。6.按照单位完成检测检验工作所需的收费成本支出情况申请项目资金，并严格按照单位项目资金管理办法及项目预算明细表使用资金，本着厉行节约的原则，制定一定的节支增效措施控制检验成本开支，不超预算、超范围使用项目资金。7.按照《特种设备检验检测机构核准规则》中规定的检验人员资格及数量的要求，制定培训计划培训比率。8.在检验检测服务过程中与客户进行充分沟通，定期或不定期对客户进行回访，了解客户对本站工作和服务质量的要求及意见，杜绝报告检验报告超时出具，使受检方满意度大于98%。","产出指标","质量指标","检验报告出具率","=","100","%","定量指标","反映检验出具报告情况。检验报告出具率=出具检验报告数/实际检验的特种设备台数*100%"]
["特种设备检验收费成本补偿支出补助资金","1.检测站按照《中华人民共和国特种设备安全法》、《特种设备安全监察条例》及相关技术监察规程等法律法规的要求，对报检设备进行检验，保证所检特种设备安全运行。2.认真执行质量管理手册规定的程序，按照《固定式压力容器安全技术监察规程》、《压力管道安全技术监察规程》的要求出具检验报告。检验报告质量合格率不低于99%。3.现场检验工作结束后三十个工作日内出具检验报告。4.在对企业报检设备检验过程中发现的不符合规定的安全隐患问题及时发出检验意见书，督促企业进行整改，避免所检特种设备发生安全事故，从源头上消除了特种设备可能存在的不安全因素，为企业安全生产提供相关保障。5.及时安排组织检验任务和完成检验项目，及时向受检单位出具收费通知书，及时办理决算的相关手续，收回检验费用,完成年初非税收入收款计划220万元。6.按照单位完成检测检验工作所需的收费成本支出情况申请项目资金，并严格按照单位项目资金管理办法及项目预算明细表使用资金，本着厉行节约的原则，制定一定的节支增效措施控制检验成本开支，不超预算、超范围使用项目资金。7.按照《特种设备检验检测机构核准规则》中规定的检验人员资格及数量的要求，制定培训计划培训比率。8.在检验检测服务过程中与客户进行充分沟通，定期或不定期对客户进行回访，了解客户对本站工作和服务质量的要求及意见，杜绝报告检验报告超时出具，使受检方满意度大于98%。","产出指标","时效指标","检验报告出具时限","<=","30个工作日","工作日","定量指标","反映检验报告出具时限，检验工作结束后30个工作日内出具报告，交付使用单位存入压力容器技术档案。"]
["特种设备检验收费成本补偿支出补助资金","1.检测站按照《中华人民共和国特种设备安全法》、《特种设备安全监察条例》及相关技术监察规程等法律法规的要求，对报检设备进行检验，保证所检特种设备安全运行。2.认真执行质量管理手册规定的程序，按照《固定式压力容器安全技术监察规程》、《压力管道安全技术监察规程》的要求出具检验报告。检验报告质量合格率不低于99%。3.现场检验工作结束后三十个工作日内出具检验报告。4.在对企业报检设备检验过程中发现的不符合规定的安全隐患问题及时发出检验意见书，督促企业进行整改，避免所检特种设备发生安全事故，从源头上消除了特种设备可能存在的不安全因素，为企业安全生产提供相关保障。5.及时安排组织检验任务和完成检验项目，及时向受检单位出具收费通知书，及时办理决算的相关手续，收回检验费用,完成年初非税收入收款计划220万元。6.按照单位完成检测检验工作所需的收费成本支出情况申请项目资金，并严格按照单位项目资金管理办法及项目预算明细表使用资金，本着厉行节约的原则，制定一定的节支增效措施控制检验成本开支，不超预算、超范围使用项目资金。7.按照《特种设备检验检测机构核准规则》中规定的检验人员资格及数量的要求，制定培训计划培训比率。8.在检验检测服务过程中与客户进行充分沟通，定期或不定期对客户进行回访，了解客户对本站工作和服务质量的要求及意见，杜绝报告检验报告超时出具，使受检方满意度大于98%。","产出指标","时效指标","检验工作进度","=","100","%","定量指标","反映检验工作完成进度，每年上半年完成20%，下半年完成80%。"]
["特种设备检验收费成本补偿支出补助资金","1.检测站按照《中华人民共和国特种设备安全法》、《特种设备安全监察条例》及相关技术监察规程等法律法规的要求，对报检设备进行检验，保证所检特种设备安全运行。2.认真执行质量管理手册规定的程序，按照《固定式压力容器安全技术监察规程》、《压力管道安全技术监察规程》的要求出具检验报告。检验报告质量合格率不低于99%。3.现场检验工作结束后三十个工作日内出具检验报告。4.在对企业报检设备检验过程中发现的不符合规定的安全隐患问题及时发出检验意见书，督促企业进行整改，避免所检特种设备发生安全事故，从源头上消除了特种设备可能存在的不安全因素，为企业安全生产提供相关保障。5.及时安排组织检验任务和完成检验项目，及时向受检单位出具收费通知书，及时办理决算的相关手续，收回检验费用,完成年初非税收入收款计划220万元。6.按照单位完成检测检验工作所需的收费成本支出情况申请项目资金，并严格按照单位项目资金管理办法及项目预算明细表使用资金，本着厉行节约的原则，制定一定的节支增效措施控制检验成本开支，不超预算、超范围使用项目资金。7.按照《特种设备检验检测机构核准规则》中规定的检验人员资格及数量的要求，制定培训计划培训比率。8.在检验检测服务过程中与客户进行充分沟通，定期或不定期对客户进行回访，了解客户对本站工作和服务质量的要求及意见，杜绝报告检验报告超时出具，使受检方满意度大于98%。","效益指标","经济效益","年初非税收入计划完成率","=","100","%","定量指标","反映年度实际完成非税收入情况。年初非税收入计划完成率=年度实际完成非税收入数/年初非税收入计划数*100%"]
["特种设备检验收费成本补偿支出补助资金","1.检测站按照《中华人民共和国特种设备安全法》、《特种设备安全监察条例》及相关技术监察规程等法律法规的要求，对报检设备进行检验，保证所检特种设备安全运行。2.认真执行质量管理手册规定的程序，按照《固定式压力容器安全技术监察规程》、《压力管道安全技术监察规程》的要求出具检验报告。检验报告质量合格率不低于99%。3.现场检验工作结束后三十个工作日内出具检验报告。4.在对企业报检设备检验过程中发现的不符合规定的安全隐患问题及时发出检验意见书，督促企业进行整改，避免所检特种设备发生安全事故，从源头上消除了特种设备可能存在的不安全因素，为企业安全生产提供相关保障。5.及时安排组织检验任务和完成检验项目，及时向受检单位出具收费通知书，及时办理决算的相关手续，收回检验费用,完成年初非税收入收款计划220万元。6.按照单位完成检测检验工作所需的收费成本支出情况申请项目资金，并严格按照单位项目资金管理办法及项目预算明细表使用资金，本着厉行节约的原则，制定一定的节支增效措施控制检验成本开支，不超预算、超范围使用项目资金。7.按照《特种设备检验检测机构核准规则》中规定的检验人员资格及数量的要求，制定培训计划培训比率。8.在检验检测服务过程中与客户进行充分沟通，定期或不定期对客户进行回访，了解客户对本站工作和服务质量的要求及意见，杜绝报告检验报告超时出具，使受检方满意度大于98%。","效益指标","经济效益","避免特种设备安全事故导致经济损失确保率","=","100","%","定性指标","反映特种设备检验从源头上消除了特种设备可能存在的不安全因素，100%避免企业因安全事故带来经济损失。"]
["特种设备检验收费成本补偿支出补助资金","1.检测站按照《中华人民共和国特种设备安全法》、《特种设备安全监察条例》及相关技术监察规程等法律法规的要求，对报检设备进行检验，保证所检特种设备安全运行。2.认真执行质量管理手册规定的程序，按照《固定式压力容器安全技术监察规程》、《压力管道安全技术监察规程》的要求出具检验报告。检验报告质量合格率不低于99%。3.现场检验工作结束后三十个工作日内出具检验报告。4.在对企业报检设备检验过程中发现的不符合规定的安全隐患问题及时发出检验意见书，督促企业进行整改，避免所检特种设备发生安全事故，从源头上消除了特种设备可能存在的不安全因素，为企业安全生产提供相关保障。5.及时安排组织检验任务和完成检验项目，及时向受检单位出具收费通知书，及时办理决算的相关手续，收回检验费用,完成年初非税收入收款计划220万元。6.按照单位完成检测检验工作所需的收费成本支出情况申请项目资金，并严格按照单位项目资金管理办法及项目预算明细表使用资金，本着厉行节约的原则，制定一定的节支增效措施控制检验成本开支，不超预算、超范围使用项目资金。7.按照《特种设备检验检测机构核准规则》中规定的检验人员资格及数量的要求，制定培训计划培训比率。8.在检验检测服务过程中与客户进行充分沟通，定期或不定期对客户进行回访，了解客户对本站工作和服务质量的要求及意见，杜绝报告检验报告超时出具，使受检方满意度大于98%。","效益指标","社会效益","特种设备安全运行事故发生次数","=","0","次","定量指标","反映特种设备安全运行事故发生的次数。"]
["特种设备检验收费成本补偿支出补助资金","1.检测站按照《中华人民共和国特种设备安全法》、《特种设备安全监察条例》及相关技术监察规程等法律法规的要求，对报检设备进行检验，保证所检特种设备安全运行。2.认真执行质量管理手册规定的程序，按照《固定式压力容器安全技术监察规程》、《压力管道安全技术监察规程》的要求出具检验报告。检验报告质量合格率不低于99%。3.现场检验工作结束后三十个工作日内出具检验报告。4.在对企业报检设备检验过程中发现的不符合规定的安全隐患问题及时发出检验意见书，督促企业进行整改，避免所检特种设备发生安全事故，从源头上消除了特种设备可能存在的不安全因素，为企业安全生产提供相关保障。5.及时安排组织检验任务和完成检验项目，及时向受检单位出具收费通知书，及时办理决算的相关手续，收回检验费用,完成年初非税收入收款计划220万元。6.按照单位完成检测检验工作所需的收费成本支出情况申请项目资金，并严格按照单位项目资金管理办法及项目预算明细表使用资金，本着厉行节约的原则，制定一定的节支增效措施控制检验成本开支，不超预算、超范围使用项目资金。7.按照《特种设备检验检测机构核准规则》中规定的检验人员资格及数量的要求，制定培训计划培训比率。8.在检验检测服务过程中与客户进行充分沟通，定期或不定期对客户进行回访，了解客户对本站工作和服务质量的要求及意见，杜绝报告检验报告超时出具，使受检方满意度大于98%。","效益指标","生态效益","特种设备介质泄漏、破坏生态环境次数","=","0","次","定量指标","反映检验工作促进特种设备安全运行情况，确保特种设备安全运行、介质不泄漏、不破坏生态环境。"]
["特种设备检验收费成本补偿支出补助资金","1.检测站按照《中华人民共和国特种设备安全法》、《特种设备安全监察条例》及相关技术监察规程等法律法规的要求，对报检设备进行检验，保证所检特种设备安全运行。2.认真执行质量管理手册规定的程序，按照《固定式压力容器安全技术监察规程》、《压力管道安全技术监察规程》的要求出具检验报告。检验报告质量合格率不低于99%。3.现场检验工作结束后三十个工作日内出具检验报告。4.在对企业报检设备检验过程中发现的不符合规定的安全隐患问题及时发出检验意见书，督促企业进行整改，避免所检特种设备发生安全事故，从源头上消除了特种设备可能存在的不安全因素，为企业安全生产提供相关保障。5.及时安排组织检验任务和完成检验项目，及时向受检单位出具收费通知书，及时办理决算的相关手续，收回检验费用,完成年初非税收入收款计划220万元。6.按照单位完成检测检验工作所需的收费成本支出情况申请项目资金，并严格按照单位项目资金管理办法及项目预算明细表使用资金，本着厉行节约的原则，制定一定的节支增效措施控制检验成本开支，不超预算、超范围使用项目资金。7.按照《特种设备检验检测机构核准规则》中规定的检验人员资格及数量的要求，制定培训计划培训比率。8.在检验检测服务过程中与客户进行充分沟通，定期或不定期对客户进行回访，了解客户对本站工作和服务质量的要求及意见，杜绝报告检验报告超时出具，使受检方满意度大于98%。","满意度指标","服务对象满意度","受检方满意度",">=","98","%","定量指标","反映检测单位对检测服务与质量的满意度。"]
["其他人员支出","为满足特种设备检验工作及质量体系运转需要，聘用一定数量具有资质的人员，以保障单位特种设备检验工作的顺利开展，完成年度特种设备检验计划。","产出指标","数量指标","编外人员数量","<","7","人","定量指标","反映聘用的编外人员数量"]
["其他人员支出","为满足特种设备检验工作及质量体系运转需要，聘用一定数量具有资质的人员，以保障单位特种设备检验工作的顺利开展，完成年度特种设备检验计划。","产出指标","质量指标","编外人员学历及持证情况","=","100","%","定量指标","反映聘用编外人员学历及持证情况"]
["其他人员支出","为满足特种设备检验工作及质量体系运转需要，聘用一定数量具有资质的人员，以保障单位特种设备检验工作的顺利开展，完成年度特种设备检验计划。","产出指标","时效指标","编外人员工资发放","=","每月15日前","次/月（季、年）","定量指标","反映编外人员工资发放情况"]
["其他人员支出","为满足特种设备检验工作及质量体系运转需要，聘用一定数量具有资质的人员，以保障单位特种设备检验工作的顺利开展，完成年度特种设备检验计划。","效益指标","经济效益","检验工作失误造成的重大事故","=","0","次","定量指标","反映特种设备检验从源头上消除了特种设备可能存在的不安全因素，100%避免企业因安全事故带来经济损失。"]
["其他人员支出","为满足特种设备检验工作及质量体系运转需要，聘用一定数量具有资质的人员，以保障单位特种设备检验工作的顺利开展，完成年度特种设备检验计划。","效益指标","生态效益","为企业服务，促进企业安全生产、节能降耗","=","100","%","定量指标","反映特种设备检验促进企业安全生产和节能降耗的情况"]
["其他人员支出","为满足特种设备检验工作及质量体系运转需要，聘用一定数量具有资质的人员，以保障单位特种设备检验工作的顺利开展，完成年度特种设备检验计划。","效益指标","可持续影响","对提高检验工作效率、提升检验队伍水平的持续影响","=","100","%","定量指标","反映单位检验工作及检验队伍的提升情况"]
["其他人员支出","为满足特种设备检验工作及质量体系运转需要，聘用一定数量具有资质的人员，以保障单位特种设备检验工作的顺利开展，完成年度特种设备检验计划。","满意度指标","服务对象满意度","受检方满意度",">=","98","%","定量指标","反映检测单位对检测服务与质量的满意度。"]

{"sheet":"部门政府性基金预算支出预算表06","index":9,"n_rows":9,"n_cols":6,"rows_kept":9,"merged":[[1,0,1,5],[2,0,2,2],[3,0,4,0],[3,1,4,1],[3,2,4,2],[3,3,3,5],[7,0,7,2]]}
[{"$nulls":5},"预算06表"]
["2025年部门政府性基金预算支出预算表"]
[{"$f":"\"单位名称：\"&\"云南省石油化工锅炉压力容器检测中心站\"","v":"单位名称：云南省石油化工锅炉压力容器检测中心站"},{"$nulls":4},"单位:元"]
["单位名称","科目编码","科目名称","政府性基金预算支出"]
[{"$nulls":3},"合计","基本支出","项目支出"]
[1,2,3,4,5,6]
[]
["合  计",null,"合  计"]
["注：此表无数据"]

{"sheet":"部门政府采购预算表07","index":10,"n_rows":12,"n_cols":17,"rows_kept":12,"merged":[[1,0,1,16],[2,0,2,5],[3,0,5,0],[3,1,5,1],[3,2,5,2],[3,3,5,3],[3,4,5,4],[3,5,5,5],[3,6,3,16],[4,6,5,6],[4,7,5,7],[4,8,5,8],[4,9,5,9],[4,10,5,10],[4,11,4,16],[11,0,11,4]]}
[{"$nulls":16},"预算07表"]
["2025年部门政府采购预算表"]
[{"$f":"\"单位名称：\"&\"云南省石油化工锅炉压力容器检测中心站\"","v":"单位名称：云南省石油化工锅炉压力容器检测中心站"},{"$nulls":15},"单位：元"]
["预算项目","采购项目","采购目录","计量\n单位","数量","面向中小企业预留资金","资金来源"]
[{"$nulls":6},"合计","一般公共预算","政府性\n基金","国有资本经营收益","财政专户管理的收入","单位自筹"]
[{"$nulls":7},"小计",{"$nulls":3},"小计","事业收入","事业单位\n经营收入","上级补助收入","附属单位上缴收入","其他收入"]
[1,2,3,4,5,6,7,8,9,10,11,12,13,14,15,16,17]
["云南省石油化工锅炉压力容器检测中心站",{"$nulls":5},{"v":25300,"d":"25,300.00"},{"v":25300,"d":"25,300.00"}]
["特种设备检验收费成本补偿支出补助资金","笔记本电脑","A02010108 便携式计算机","台",3,null,{"v":18600,"d":"18,600.00"},{"v":18600,"d":"18,600.00"}]
["特种设备检验收费成本补偿支出补助资金","网络设备机柜","A02010601 机柜","个",1,null,{"v":1000,"d":"1,000.00"},{"v":1000,"d":"1,000.00"}]
["特种设备检验收费成本补偿支出补助资金","台式电脑","A02010105 台式计算机","台",1,null,{"v":5700,"d":"5,700.00"},{"v":5700,"d":"5,700.00"}]
["合  计",{"$nulls":5},{"v":25300,"d":"25,300.00"},{"v":25300,"d":"25,300.00"}]

{"sheet":"部门政府购买服务预算表08","index":11,"n_rows":11,"n_cols":14,"rows_kept":11,"merged":[[1,0,1,13],[2,0,2,2],[3,0,5,0],[3,1,5,1],[3,2,5,2],[3,3,3,13],[4,3,5,3],[4,4,5,4],[4,5,5,5],[4,6,5,6],[4,7,5,7],[4,8,4,13],[9,0,9,2]]}
[{"$nulls":13},"预算08表"]
["2025年部门政府购买服务预算表"]
[{"$f":"\"单位名称：\"&\"云南省石油化工锅炉压力容器检测中心站\"","v":"单位名称：云南省石油化工锅炉压力容器检测中心站"},{"$nulls":12},"单位：元"]
["预算项目","政府购买服务项目","政府购买服务目录","资金来源"]
[{"$nulls":3},"合计","一般公共预算","政府性\n基金","国有资本经营收益","财政专户管理的收入","单位自筹"]
[{"$nulls":8},"小计","事业收入","事业单位\n经营收入","上级补助收入","附属单位上缴收入","其他收入"]
[1,2,3,4,5,6,7,8,9,10,11,12,13,14]
[]
[]
["合  计"]
["注：此表无数据"]

{"sheet":"省对下转移支付预算表09-1","index":12,"n_rows":9,"n_cols":23,"rows_kept":9,"merged":[[1,0,1,22],[2,0,2,8],[3,0,4,0],[3,1,3,3],[3,4,3,22]]}
[{"$nulls":22},"预算09-1表"]
["2025年省对下转移支付预算表"]
[{"$f":"\"单位名称：\"&\"云南省石油化工锅炉压力容器检测中心站\"","v":"单位名称：云南省石油化工锅炉压力容器检测中心站"},{"$nulls":21},"单位：元"]
["单位名称（项目）","资金来源",null,null,"地区"]
[null,"合计","一般公共预算","政府性基金","昆明","昭通","曲靖","玉溪","红河","文山","普洱","西双版纳","楚雄","大理","保山","德宏","丽江","怒江","迪庆","临沧","宣威","腾冲","镇雄"]
[1,2,3,4,5,6,7,8,9,10,11,12,13,14,15,16,17,18,19,20,21,22,23]
[]
[]
["注：此表无数据"]

{"sheet":"省对下转移支付绩效目标表09-2","index":13,"n_rows":8,"n_cols":10,"rows_kept":8,"merged":[[1,0,1,9],[2,0,2,7]]}
[{"$nulls":9},"预算09-2表"]
["2025年省对下转移支付绩效目标表"]
[{"$f":"\"单位名称：\"&\"云南省石油化工锅炉压力容器检测中心站\"","v":"单位名称：云南省石油化工锅炉压力容器检测中心站"}]
["单位名称、项目名称","项目年度绩效目标","一级指标","二级指标","三级指标","指标性质","指标值","度量单位","指标属性","指标内容"]
[1,2,3,4,5,6,7,8,9,10]
[]
[]
["注：此表无数据"]

{"sheet":"新增资产配置表10","index":14,"n_rows":19,"n_cols":8,"rows_kept":19,"merged":[[1,0,1,7],[2,0,2,1],[3,0,4,0],[3,1,4,1],[3,2,4,2],[3,3,4,3],[3,4,4,4],[3,5,3,7],[18,0,18,4]]}
[{"$nulls":7},"预算10表"]
["2025年新增资产配置表"]
[{"$f":"\"单位名称：\"&\"云南省石油化工锅炉压力容器检测中心站\"","v":"单位名称：云南省石油化工锅炉压力容器检测中心站"}]
["单位名称","资产类别","资产分类代码.名称","资产名称","计量单位","财政部门批复数（元）"]
[{"$nulls":5},"数量","单价","金额"]
["1","2","3","4","5","6","7","8"]
["云南省石油化工锅炉压力容器检测中心站","设备","A02010105 台式计算机","台式电脑","台",1,{"v":5700,"d":"5,700.00"},{"v":5700,"d":"5,700.00"}]
["云南省石油化工锅炉压力容器检测中心站","设备","A02010108 便携式计算机","笔记本电脑","台",3,{"v":6200,"d":"6,200.00"},{"v":18600,"d":"18,600.00"}]
["云南省石油化工锅炉压力容器检测中心站","设备","A02010601 机柜","网络设备机柜","台",1,{"v":1480,"d":"1,480.00"},{"v":1480,"d":"1,480.00"}]
["云南省石油化工锅炉压力容器检测中心站","设备","A02100301 显微镜","便携式金相显微镜","台",1,{"v":7000,"d":"7,000.00"},{"v":7000,"d":"7,000.00"}]
["云南省石油化工锅炉压力容器检测中心站","设备","A02100401 电化学分析仪器","卡氏水分测定仪","台",1,{"v":23000,"d":"23,000.00"},{"v":23000,"d":"23,000.00"}]
["云南省石油化工锅炉压力容器检测中心站","设备","A02100411 蒸馏及分离式分析仪","蒸馏仪","台",1,{"v":15500,"d":"15,500.00"},{"v":15500,"d":"15,500.00"}]
["云南省石油化工锅炉压力容器检测中心站","设备","A02100499 其他分析仪器","残炭测定仪","台",1,{"v":29200,"d":"29,200.00"},{"v":29200,"d":"29,200.00"}]
["云南省石油化工锅炉压力容器检测中心站","设备","A02100508 无损探伤机","工业视频内窥镜","台",1,{"v":58000,"d":"58,000.00"},{"v":58000,"d":"58,000.00"}]
["云南省石油化工锅炉压力容器检测中心站","设备","A02100699 其他试验仪器及装置","运动粘度测定仪","台",1,{"v":42000,"d":"42,000.00"},{"v":42000,"d":"42,000.00"}]
["云南省石油化工锅炉压力容器检测中心站","设备","A02102700 建筑工程仪器","超声波测厚仪","台",4,{"v":3450,"d":"3,450.00"},{"v":13800,"d":"13,800.00"}]
["云南省石油化工锅炉压力容器检测中心站","设备","A02102700 建筑工程仪器","超声波测厚仪","台",1,{"v":16500,"d":"16,500.00"},{"v":16500,"d":"16,500.00"}]
["云南省石油化工锅炉压力容器检测中心站","设备","A02109900 其他仪器仪表","便携式硬度计","台",1,{"v":18200,"d":"18,200.00"},{"v":18200,"d":"18,200.00"}]
["合计",{"$nulls":4},17,null,{"v":248980,"d":"248,980.00"}]

{"sheet":"中央转移支付补助项目支出预算表11","index":15,"n_rows":11,"n_cols":11,"rows_kept":11,"merged":[[1,0,1,10],[2,0,2,6],[3,0,5,0],[3,1,5,1],[3,2,5,2],[3,3,5,3],[3,4,5,4],[3,5,5,5],[3,6,5,6],[3,7,5,7],[3,8,3,10],[4,8,5,8],[4,9,5,9],[4,10,5,10],[9,0,9,6]]}
[{"$nulls":10},"预算11表"]
["2025年中央转移支付补助项目支出预算表"]
[{"$f":"\"单位名称：\"&\"云南省石油化工锅炉压力容器检测中心站\"","v":"单位名称：云南省石油化工锅炉压力容器检测中心站"},{"$nulls":9},"单位：元"]
["项目分类","项目名称","项目单位","功能科目编码","功能科目名称","经济科目编码","经济科目名称","合计","上级补助"]
[{"$nulls":8},"一般公共预算","政府性基金预算","国有资本经营预算"]
[{"$nulls":8},"小计"]
[1,2,3,4,5,6,7,8,9,10,11]
[]
[]
["合  计"]
["注：此表无数据"]

{"sheet":"部门项目中期规划预算表12","index":16,"n_rows":11,"n_cols":7,"rows_kept":11,"merged":[[1,0,1,6],[2,0,2,3],[3,0,5,0],[3,1,5,1],[3,2,5,2],[3,3,5,3],[3,4,3,6],[4,4,5,4],[4,5,5,5],[4,6,5,6],[10,0,10,3]]}
[{"$nulls":6},"预算12表"]
["2025年部门项目支出中期规划预算表"]
[{"$f":"\"单位名称：\"&\"云南省石油化工锅炉压力容器检测中心站\"","v":"单位名称：云南省石油化工锅炉压力容器检测中心站"},{"$nulls":5},"单位：元"]
["项目单位","项目分类","项目名称","项目级次","一般公共预算"]
[{"$nulls":4},"2025年","2026年","2027年"]
[{"$nulls":5},"小计"]
[1,2,3,4,5,6,7]
["云南省石油化工锅炉压力容器检测中心站",{"$nulls":3},{"v":1025000,"d":"1,025,000.00"},{"v":1025000,"d":"1,025,000.00"},{"v":1025000,"d":"1,025,000.00"}]
[null,"312 民生类","其他人员支出","本级",{"v":394000,"d":"394,000.00"},{"v":394000,"d":"394,000.00"},{"v":394000,"d":"394,000.00"}]
[null,"313 事业发展类","特种设备检验收费成本补偿支出补助资金","本级",{"v":631000,"d":"631,000.00"},{"v":631000,"d":"631,000.00"},{"v":631000,"d":"631,000.00"}]
["合计","",null,null,{"v":1025000,"d":"1,025,000.00"},{"v":1025000,"d":"1,025,000.00"},{"v":1025000,"d":"1,025,000.00"}]